[Event "NJSK 2018 Meisjes C"]
[Site "Assen, Netherlands"]
[Date "2018.05.02"]
[Round "4.1"]
[White "Raulji, Kavya"]
[Black "Basa, Manasvita"]
[Result "0-1"]
[TimeControl "40/90m+30m+30sec/move"]
[WhiteElo "1394"]
[BlackElo "1402"]

1. e4 {[%clk 01:30:58]} {[%emt 00:00:02]} e5 {[%clk 01:30:59]} {[%emt
00:00:01]} 2. Nf3 {[%clk 01:31:23]} {[%emt 00:00:06]} Nc6 {[%clk 01:31:24]}
{[%emt 00:00:05]} 3. Bc4 {[%clk 01:31:50]} {[%emt 00:00:02]} Bc5 {[%clk
01:31:48]} {[%emt 00:00:06]} 4. O-O {[%clk 01:32:17]} {[%emt 00:00:04]} Nf6
{[%clk 01:31:41]} {[%emt 00:00:38]} 5. d3 {[%clk 01:32:41]} {[%emt 00:00:05]}
O-O {[%clk 01:32:04]} {[%emt 00:00:06]} 6. a4 {[%clk 01:32:26]} {[%emt
00:00:46]} a5 {[%clk 01:30:55]} {[%emt 00:01:40]} 7. c3 {[%clk 01:32:43]}
{[%emt 00:00:12]} d5 {[%clk 01:29:07]} {[%emt 00:02:18]} 8. exd5 {[%clk
01:32:03]} {[%emt 00:01:09]} Nxd5 {[%clk 01:29:28]} {[%emt 00:00:09]} 9. Re1
{[%clk 01:30:32]} {[%emt 00:02:01]} Re8 {[%clk 01:27:27]} {[%emt 00:02:32]} 10.
Nbd2 {[%clk 01:30:22]} {[%emt 00:00:39]} Nf6 {[%clk 01:23:34]} {[%emt
00:04:24]} 11. h3 {[%clk 01:20:43]} {[%emt 00:10:08]} h6 {[%clk 01:23:16]}
{[%emt 00:00:49]} 12. Ne4 {[%clk 01:17:34]} {[%emt 00:03:39]} Nxe4 {[%clk
01:21:54]} {[%emt 00:01:52]} 13. dxe4 {[%clk 01:17:47]} {[%emt 00:00:17]} Be6
{[%clk 01:21:32]} {[%emt 00:00:52]} 14. Bxe6 {[%clk 01:16:14]} {[%emt
00:02:03]} Rxe6 {[%clk 01:21:54]} {[%emt 00:00:08]} 15. Be3 {[%clk 01:12:39]}
{[%emt 00:04:05]} Bxe3 {[%clk 01:18:41]} {[%emt 00:03:43]} 16. Rxe3 {[%clk
01:12:21]} {[%emt 00:00:48]} Rd6 {[%clk 01:18:15]} {[%emt 00:00:57]} 17. Qb3
{[%clk 01:11:12]} {[%emt 00:01:37]} b6 {[%clk 01:07:34]} {[%emt 00:11:12]} 18.
Qb5 {[%clk 01:05:45]} {[%emt 00:05:56]} Qf6 {[%clk 01:04:07]} {[%emt 00:03:58]}
19. Qe2 {[%clk 00:59:36]} {[%emt 00:06:39]} Rad8 {[%clk 01:03:12]} {[%emt
00:01:25]} 20. Rb1 {[%clk 00:49:24]} {[%emt 00:10:42]} Ne7 {[%clk 01:00:35]}
{[%emt 00:03:07]} 21. b4 {[%clk 00:46:26]} {[%emt 00:03:27]} axb4 {[%clk
01:00:48]} {[%emt 00:00:18]} 22. cxb4 {[%clk 00:46:50]} {[%emt 00:00:06]} Ng6
{[%clk 01:00:52]} {[%emt 00:00:26]} 23. g3 {[%clk 00:41:54]} {[%emt 00:05:24]}
Ra8 {[%clk 00:55:31]} {[%emt 00:05:53]} 24. Ra1 {[%clk 00:40:51]} {[%emt
00:01:33]} Ne7 {[%clk 00:52:19]} {[%emt 00:03:42]} 25. Kg2 {[%clk 00:36:29]}
{[%emt 00:04:51]} Nc6 {[%clk 00:52:20]} {[%emt 00:00:30]} 26. Rb3 {[%clk
00:33:04]} {[%emt 00:03:54]} Nd4 {[%clk 00:51:50]} {[%emt 00:01:00]} 27. Nxd4
{[%clk 00:33:19]} {[%emt 00:00:15]} Rxd4 {[%clk 00:52:12]} {[%emt 00:00:09]} 28.
Qc2 {[%clk 00:30:40]} {[%emt 00:03:08]} Qd6 {[%clk 00:51:19]} {[%emt 00:01:24]}
29. Qb1 {[%clk 00:28:36]} {[%emt 00:02:33]} Qc6 {[%clk 00:51:07]} {[%emt
00:00:43]} 30. a5 {[%clk 00:27:26]} {[%emt 00:01:40]} Rxe4 {[%clk 00:49:09]}
{[%emt 00:02:28]} 31. b5 {[%clk 00:25:28]} {[%emt 00:02:28]} Qd5 {[%clk
00:48:56]} {[%emt 00:00:43]} 32. Kg1 {[%clk 00:23:35]} {[%emt 00:02:23]} bxa5
{[%clk 00:48:03]} {[%emt 00:01:23]} 33. Rba3 {[%clk 00:23:01]} {[%emt
00:01:04]} a4 {[%clk 00:47:53]} {[%emt 00:00:40]} 34. Rc3 {[%clk 00:21:28]}
{[%emt 00:02:03]} Rc4 {[%clk 00:47:09]} {[%emt 00:01:13]} 35. Rd3 {[%clk
00:20:10]} {[%emt 00:01:49]} Qc5 {[%clk 00:46:20]} {[%emt 00:01:19]} 36. Rda3
{[%clk 00:17:39]} {[%emt 00:03:00]} Rc2 {[%clk 00:45:18]} {[%emt 00:01:33]} 37.
Qf1 {[%clk 00:16:53]} {[%emt 00:01:14]} Rb2 {[%clk 00:45:41]} {[%emt 00:00:09]}
38. Rxa4 {[%clk 00:16:57]} {[%emt 00:00:27]} Rxa4 {[%clk 00:45:39]} {[%emt
00:00:31]} 39. Rxa4 {[%clk 00:17:21]} {[%emt 00:00:05]} Qxb5 {[%clk 00:45:54]}
{[%emt 00:00:15]} 40. Qxb5 {[%clk 00:15:16]} {[%emt 00:02:36]} Rxb5 {[%clk
00:46:18]} {[%emt 00:00:06]} 41. Rc4 {[%clk 00:15:42]} {[%emt 00:00:04]} c5
{[%clk 00:46:31]} {[%emt 00:00:17]} 42. Kg2 {[%clk 00:15:54]} {[%emt 00:00:17]}
f5 {[%clk 00:46:49]} {[%emt 00:00:12]} 43. g4 {[%clk 00:14:13]} {[%emt
00:02:11]} g6 {[%clk 00:45:57]} {[%emt 00:01:22]} 44. Kg3 {[%clk 00:12:29]}
{[%emt 00:02:14]} Kf7 {[%clk 00:45:28]} {[%emt 00:01:00]} 45. h4 {[%clk
00:10:50]} {[%emt 00:02:08]} Ke6 {[%clk 00:45:23]} {[%emt 00:00:35]} 46. g5
{[%clk 00:09:03]} {[%emt 00:02:17]} hxg5 {[%clk 00:45:18]} {[%emt 00:00:36]} 47.
hxg5 {[%clk 00:09:27]} {[%emt 00:00:05]} Kd5 {[%clk 00:45:31]} {[%emt
00:00:18]} 48. Rh4 {[%clk 00:08:06]} {[%emt 00:01:49]} c4 {[%clk 00:43:48]}
{[%emt 00:02:14]} 49. Rh6 {[%clk 00:07:37]} {[%emt 00:00:59]} Rb6 {[%clk
00:44:13]} {[%emt 00:00:05]} 50. f4 {[%clk 00:07:42]} {[%emt 00:00:25]} e4
{[%clk 00:44:37]} {[%emt 00:00:07]} 51. Kf2 {[%clk 00:07:20]} {[%emt 00:00:52]}
c3 {[%clk 00:44:34]} {[%emt 00:00:33]} 52. Ke2 {[%clk 00:05:20]} {[%emt
00:02:30]} c2 {[%clk 00:44:27]} {[%emt 00:00:37]} 53. Kd2 {[%clk 00:05:37]}
{[%emt 00:00:11]} Rc6 {[%clk 00:44:54]} {[%emt 00:00:05]} 54. Kc1 {[%clk
00:05:03]} {[%emt 00:01:04]} e3 {[%clk 00:45:16]} {[%emt 00:00:07]} 55. Rh2
{[%clk 00:03:32]} {[%emt 00:02:00]} Ke4 {[%clk 00:45:22]} {[%emt 00:00:25]} 56.
Rxc2 {[%clk 00:01:40]} {[%emt 00:02:22]} Rxc2+ {[%clk 00:45:41]} {[%emt
00:00:12]} 57. Kxc2 {[%clk 00:02:07]} {[%emt 00:00:03]} Kxf4 {[%clk 00:45:53]}
{[%emt 00:00:17]} 58. Kd1 {[%clk 00:02:25]} {[%emt 00:00:12]} Kf3 {[%clk
00:45:47]} {[%emt 00:00:37]} 59. Ke1 {[%clk 00:02:45]} {[%emt 00:00:10]} e2
{[%clk 00:46:08]} {[%emt 00:00:09]} 60. Kd2 {[%clk 00:03:05]} {[%emt 00:00:09]}
Kf2 {[%clk 00:46:32]} {[%emt 00:00:06]} 61. Kd3 {[%clk 00:03:32]} {[%emt
00:00:04]} e1=Q {[%clk 00:46:45]} {[%emt 00:00:16]} 62. Kc4 {[%clk 00:03:56]}
{[%emt 00:00:06]} Qd2 {[%clk 00:47:02]} {[%emt 00:00:13]} 63. Kb5 {[%clk
00:04:21]} {[%emt 00:00:05]} Qc3 {[%clk 00:47:23]} {[%emt 00:00:09]} 64. Kb6
{[%clk 00:04:48]} {[%emt 00:00:04]} Ke3 {[%clk 00:47:40]} {[%emt 00:00:13]} 65.
Kb7 {[%clk 00:05:12]} {[%emt 00:00:05]} Qc5 {[%clk 00:47:58]} {[%emt 00:00:12]}
66. Ka6 {[%clk 00:05:37]} {[%emt 00:00:05]} Qb4 {[%clk 00:48:21]} {[%emt
00:00:07]} 67. Ka7 {[%clk 00:06:01]} {[%emt 00:00:05]} Kd4 {[%clk 00:48:45]}
{[%emt 00:00:07]} 68. Ka6 {[%clk 00:06:23]} {[%emt 00:00:09]} Kc5 {[%clk
00:49:10]} {[%emt 00:00:04]} 69. Ka7 {[%clk 00:06:48]} {[%emt 00:00:06]} Kc6
{[%clk 00:49:32]} {[%emt 00:00:08]} 70. Ka8 {[%clk 00:07:13]} {[%emt 00:00:04]}
Qb7# {[%clk 00:50:00]} {[%emt 00:00:03]} 0-1

[Event "NJSK 2018 Meisjes C"]
[Site "Assen, Netherlands"]
[Date "2018.05.02"]
[Round "4.2"]
[White "Huang, Wendy"]
[Black "De Putter, Nina"]
[Result "1-0"]
[TimeControl "40/90m+30m+30sec/move"]
[WhiteElo "1572"]
[BlackElo "1672"]

1. e4 {[%clk 01:30:59]} {[%emt 00:00:02]} e5 {[%clk 01:30:47]} {[%emt
00:00:14]} 2. Nf3 {[%clk 01:31:22]} {[%emt 00:00:06]} Nc6 {[%clk 01:31:07]}
{[%emt 00:00:09]} 3. Bc4 {[%clk 01:31:43]} {[%emt 00:00:10]} Bc5 {[%clk
01:31:26]} {[%emt 00:00:11]} 4. c3 {[%clk 01:31:34]} {[%emt 00:00:39]} Nf6
{[%clk 01:31:50]} {[%emt 00:00:07]} 5. d3 {[%clk 01:31:55]} {[%emt 00:00:09]}
h6 {[%clk 01:31:44]} {[%emt 00:00:36]} 6. Nbd2 {[%clk 01:31:19]} {[%emt
00:01:06]} O-O {[%clk 01:31:51]} {[%emt 00:00:22]} 7. O-O {[%clk 01:30:48]}
{[%emt 00:01:01]} d6 {[%clk 01:30:28]} {[%emt 00:01:53]} 8. Re1 {[%clk
01:30:16]} {[%emt 00:01:01]} Bg4 {[%clk 01:30:29]} {[%emt 00:00:29]} 9. h3
{[%clk 01:29:11]} {[%emt 00:01:35]} Be6 {[%clk 01:28:20]} {[%emt 00:02:39]} 10.
Bxe6 {[%clk 01:26:41]} {[%emt 00:03:01]} fxe6 {[%clk 01:28:42]} {[%emt
00:00:08]} 11. Qb3 {[%clk 01:24:58]} {[%emt 00:02:13]} Qc8 {[%clk 01:27:28]}
{[%emt 00:01:44]} 12. Nf1 {[%clk 01:23:20]} {[%emt 00:02:08]} Bb6 {[%clk
01:27:04]} {[%emt 00:00:55]} 13. Ng3 {[%clk 01:20:56]} {[%emt 00:02:53]} Kh8
{[%clk 01:23:08]} {[%emt 00:04:26]} 14. Be3 {[%clk 01:19:10]} {[%emt 00:02:16]}
Qd7 {[%clk 01:21:52]} {[%emt 00:01:44]} 15. Bxb6 {[%clk 01:18:17]} {[%emt
00:01:25]} axb6 {[%clk 01:22:15]} {[%emt 00:00:07]} 16. d4 {[%clk 01:17:23]}
{[%emt 00:01:24]} exd4 {[%clk 01:21:09]} {[%emt 00:01:36]} 17. cxd4 {[%clk
01:17:04]} {[%emt 00:00:49]} Ra5 {[%clk 01:19:13]} {[%emt 00:02:26]} 18. Rad1
{[%clk 01:13:22]} {[%emt 00:04:12]} Nh5 {[%clk 01:16:47]} {[%emt 00:02:56]} 19.
d5 {[%clk 01:10:18]} {[%emt 00:03:34]} exd5 {[%clk 00:50:44]} {[%emt 00:26:33]}
20. exd5 {[%clk 01:09:08]} {[%emt 00:01:39]} Qf7 {[%clk 00:46:43]} {[%emt
00:04:31]} 21. dxc6 {[%clk 01:03:46]} {[%emt 00:05:53]} Qxb3 {[%clk 00:43:52]}
{[%emt 00:03:21]} 22. axb3 {[%clk 01:04:02]} {[%emt 00:00:14]} bxc6 {[%clk
00:43:51]} {[%emt 00:00:32]} 23. Nxh5 {[%clk 01:03:56]} {[%emt 00:00:35]} Rxh5
{[%clk 00:44:12]} {[%emt 00:00:09]} 24. Re7 {[%clk 01:03:13]} {[%emt 00:01:12]}
Rb5 {[%clk 00:43:53]} {[%emt 00:00:50]} 25. Rxc7 {[%clk 00:58:20]} {[%emt
00:05:23]} Rxb3 {[%clk 00:43:26]} {[%emt 00:00:57]} 26. Rxc6 {[%clk 00:58:35]}
{[%emt 00:00:15]} Rxb2 {[%clk 00:43:31]} {[%emt 00:00:24]} 27. Rcxd6 {[%clk
00:58:47]} {[%emt 00:00:18]} b5 {[%clk 00:42:53]} {[%emt 00:01:10]} 28. Rd8
{[%clk 00:57:20]} {[%emt 00:01:56]} Rxd8 {[%clk 00:43:14]} {[%emt 00:00:09]} 29.
Rxd8 {[%clk 00:57:44]} {[%emt 00:00:06]} Kh7 {[%clk 00:43:41]} {[%emt
00:00:03]} 30. Rb8 {[%clk 00:56:48]} {[%emt 00:01:26]} b4 {[%clk 00:44:02]}
{[%emt 00:00:09]} 31. Nd4 {[%clk 00:56:44]} {[%emt 00:00:34]} Kg6 {[%clk
00:44:11]} {[%emt 00:00:21]} 32. Nc6 {[%clk 00:56:59]} {[%emt 00:00:16]} b3
{[%clk 00:44:34]} {[%emt 00:00:07]} 33. Na5 {[%clk 00:56:49]} {[%emt 00:00:39]}
Rb1+ {[%clk 00:44:53]} {[%emt 00:00:10]} 34. Kh2 {[%clk 00:57:12]} {[%emt
00:00:08]} b2 {[%clk 00:45:07]} {[%emt 00:00:16]} 35. Nc4 {[%clk 00:57:34]}
{[%emt 00:00:08]} Rc1 {[%clk 00:43:33]} {[%emt 00:02:04]} 36. Nxb2 {[%clk
00:57:42]} {[%emt 00:00:22]} Rb1 {[%clk 00:43:30]} {[%emt 00:00:33]} 37. Rb6+
{[%clk 00:57:57]} {[%emt 00:00:15]} Kf7 {[%clk 00:43:13]} {[%emt 00:00:46]} 38.
Nc4 {[%clk 00:58:16]} {[%emt 00:00:13]} Rf1 {[%clk 00:42:41]} {[%emt 00:01:01]}
39. f3 {[%clk 00:57:36]} {[%emt 00:01:10]} Rc1 {[%clk 00:42:00]} {[%emt
00:01:10]} 40. Ne5+ {[%clk 00:57:33]} {[%emt 00:00:34]} Ke8 {[%clk 00:41:37]}
{[%emt 00:00:52]} 41. Re6+ {[%clk 00:56:39]} {[%emt 00:01:24]} Kd8 {[%clk
00:41:48]} {[%emt 00:00:19]} 42. Rg6 {[%clk 00:56:35]} {[%emt 00:00:34]} Rc7
{[%clk 00:41:57]} {[%emt 00:00:22]} 43. Nc6+ {[%clk 00:56:18]} {[%emt
00:00:46]} Ke8 {[%clk 00:42:09]} {[%emt 00:00:18]} 44. Nd4 {[%clk 00:56:22]}
{[%emt 00:00:27]} Re7 {[%clk 00:41:59]} {[%emt 00:00:40]} 45. Nf5 {[%clk
00:56:35]} {[%emt 00:00:16]} Re5 {[%clk 00:40:50]} {[%emt 00:01:39]} 46. Nxg7+
{[%clk 00:56:10]} {[%emt 00:00:56]} Kf7 {[%clk 00:41:06]} {[%emt 00:00:14]} 47.
Rg3 {[%clk 00:55:43]} {[%emt 00:00:57]} Rc5 {[%clk 00:37:28]} {[%emt 00:04:07]}
48. f4 {[%clk 00:55:02]} {[%emt 00:01:12]} Rc4 {[%clk 00:36:36]} {[%emt
00:01:22]} 49. Nh5 {[%clk 00:55:01]} {[%emt 00:00:30]} Rc5 {[%clk 00:36:49]}
{[%emt 00:00:18]} 50. f5 {[%clk 00:55:00]} {[%emt 00:00:31]} Rxf5 {[%clk
00:35:56]} {[%emt 00:01:23]} 51. Rf3 {[%clk 00:55:21]} {[%emt 00:00:09]} Rxf3
{[%clk 00:35:54]} {[%emt 00:00:32]} 52. gxf3 {[%clk 00:55:46]} {[%emt
00:00:05]} Kg6 {[%clk 00:36:07]} {[%emt 00:00:15]} 53. Nf4+ {[%clk 00:56:04]}
{[%emt 00:00:13]} Kf5 {[%clk 00:36:32]} {[%emt 00:00:05]} 54. Kg3 {[%clk
00:56:29]} {[%emt 00:00:05]} Kg5 {[%clk 00:36:45]} {[%emt 00:00:16]} 55. Nd5
{[%clk 00:56:27]} {[%emt 00:00:34]} h5 {[%clk 00:36:42]} {[%emt 00:00:32]} 56.
h4+ {[%clk 00:56:43]} {[%emt 00:00:14]} Kf5 {[%clk 00:37:04]} {[%emt 00:00:08]}
57. Ne3+ {[%clk 00:56:54]} {[%emt 00:00:19]} Kg6 {[%clk 00:37:07]} {[%emt
00:00:27]} 58. Kf4 {[%clk 00:57:14]} {[%emt 00:00:11]} Kf6 {[%clk 00:37:30]}
{[%emt 00:00:07]} 59. Nd5+ {[%clk 00:57:28]} {[%emt 00:00:16]} Ke6 {[%clk
00:37:52]} {[%emt 00:00:07]} 60. Ke4 {[%clk 00:57:47]} {[%emt 00:00:11]} Kf7
{[%clk 00:38:14]} {[%emt 00:00:09]} 61. Kf5 {[%clk 00:58:13]} {[%emt 00:00:04]}
Kg7 {[%clk 00:38:38]} {[%emt 00:00:06]} 62. Kg5 {[%clk 00:58:36]} {[%emt
00:00:08]} 1-0

[Event "NJSK 2018 Meisjes C"]
[Site "Assen, Netherlands"]
[Date "2018.05.02"]
[Round "4.3"]
[White "Hatzmann, Mirthe"]
[Black "De Zoeten, Cato"]
[Result "1-0"]
[TimeControl "40/90m+30m+30sec/move"]
[WhiteElo "1323"]
[BlackElo "1496"]

1. e4 {[%clk 01:30:58]} {[%emt 00:00:01]} c5 {[%clk 01:30:55]} {[%emt
00:00:05]} 2. d3 {[%clk 01:31:19]} {[%emt 00:00:09]} Nc6 {[%clk 01:27:37]}
{[%emt 00:03:48]} 3. g3 {[%clk 01:31:04]} {[%emt 00:00:44]} e6 {[%clk
01:24:43]} {[%emt 00:03:26]} 4. Nf3 {[%clk 01:30:04]} {[%emt 00:01:29]} d6
{[%clk 01:22:06]} {[%emt 00:03:08]} 5. Bg2 {[%clk 01:28:46]} {[%emt 00:01:46]}
Nf6 {[%clk 01:21:06]} {[%emt 00:01:32]} 6. Nc3 {[%clk 01:26:20]} {[%emt
00:02:55]} Be7 {[%clk 01:20:12]} {[%emt 00:01:23]} 7. O-O {[%clk 01:25:28]}
{[%emt 00:01:23]} O-O {[%clk 01:19:37]} {[%emt 00:01:06]} 8. Re1 {[%clk
01:22:21]} {[%emt 00:03:36]} a6 {[%clk 01:13:14]} {[%emt 00:06:53]} 9. a4
{[%clk 01:19:05]} {[%emt 00:03:46]} Qc7 {[%clk 01:10:57]} {[%emt 00:02:45]} 10.
d4 {[%clk 01:13:21]} {[%emt 00:06:16]} cxd4 {[%clk 01:06:39]} {[%emt 00:04:48]}
11. Nxd4 {[%clk 01:13:06]} {[%emt 00:00:45]} Bd7 {[%clk 01:03:14]} {[%emt
00:03:55]} 12. h3 {[%clk 01:10:23]} {[%emt 00:03:13]} Rac8 {[%clk 00:59:59]}
{[%emt 00:03:45]} 13. Be3 {[%clk 01:03:41]} {[%emt 00:07:12]} Ne5 {[%clk
00:53:35]} {[%emt 00:06:54]} 14. Rb1 {[%clk 00:54:31]} {[%emt 00:09:40]} Nc4
{[%clk 00:48:06]} {[%emt 00:05:57]} 15. Bc1 {[%clk 00:45:58]} {[%emt 00:09:04]}
Nb6 {[%clk 00:25:12]} {[%emt 00:23:25]} 16. Ra1 {[%clk 00:40:24]} {[%emt
00:06:03]} Rfd8 {[%clk 00:21:31]} {[%emt 00:04:11]} 17. Qd3 {[%clk 00:31:41]}
{[%emt 00:09:14]} Qc4 {[%clk 00:20:48]} {[%emt 00:01:09]} 18. a5 {[%clk
00:28:04]} {[%emt 00:04:11]} Na8 {[%clk 00:17:21]} {[%emt 00:03:57]} 19. Qxc4
{[%clk 00:25:38]} {[%emt 00:02:55]} Rxc4 {[%clk 00:17:38]} {[%emt 00:00:13]} 20.
Nb3 {[%clk 00:23:40]} {[%emt 00:02:28]} Rcc8 {[%clk 00:08:43]} {[%emt
00:09:26]} 21. e5 {[%clk 00:17:17]} {[%emt 00:06:53]} dxe5 {[%clk 00:07:40]}
{[%emt 00:01:33]} 22. Bxb7 {[%clk 00:16:30]} {[%emt 00:01:16]} Rb8 {[%clk
00:06:32]} {[%emt 00:01:39]} 23. Bxa6 {[%clk 00:15:51]} {[%emt 00:01:10]} Nc7
{[%clk 00:06:38]} {[%emt 00:00:23]} 24. Bd3 {[%clk 00:15:09]} {[%emt 00:01:12]}
Bc6 {[%clk 00:05:16]} {[%emt 00:01:52]} 25. Bf1 {[%clk 00:12:58]} {[%emt
00:02:40]} Bd6 {[%clk 00:03:27]} {[%emt 00:02:19]} 26. Bg2 {[%clk 00:10:23]}
{[%emt 00:03:05]} Nfd5 {[%clk 00:03:32]} {[%emt 00:00:26]} 27. Bd2 {[%clk
00:09:06]} {[%emt 00:01:47]} f6 {[%clk 00:02:44]} {[%emt 00:01:18]} 28. Ne4
{[%clk 00:07:32]} {[%emt 00:02:04]} Be7 {[%clk 00:02:42]} {[%emt 00:00:32]} 29.
Red1 {[%clk 00:06:50]} {[%emt 00:01:11]} Rdc8 {[%clk 00:02:31]} {[%emt
00:00:40]} 30. a6 {[%clk 00:06:08]} {[%emt 00:01:14]} Ra8 {[%clk 00:02:07]}
{[%emt 00:00:54]} 31. Nec5 {[%clk 00:05:33]} {[%emt 00:01:04]} Bxc5 {[%emt
00:01:11]} 32. Nxc5 {[%clk 00:05:54]} {[%emt 00:00:07]} Ne7 {[%clk 00:01:43]}
{[%emt 00:00:15]} 33. b4 {[%clk 00:04:57]} {[%emt 00:01:27]} Bxg2 {[%clk
00:01:38]} {[%emt 00:00:36]} 34. Kxg2 {[%clk 00:05:22]} {[%emt 00:00:05]} Kf7
{[%clk 00:01:28]} {[%emt 00:00:40]} 35. c4 {[%clk 00:05:28]} {[%emt 00:00:24]}
Ne8 {[%clk 00:00:59]} {[%emt 00:00:59]} 36. Rdc1 {[%clk 00:04:13]} {[%emt
00:01:46]} Nd6 {[%clk 00:01:07]} {[%emt 00:00:21]} 37. Kf3 {[%clk 00:02:54]}
{[%emt 00:01:48]} Ndf5 {[%clk 00:01:06]} {[%emt 00:00:31]} 38. Be3 {[%clk
00:02:20]} {[%emt 00:01:04]} Nd4+ {[%clk 00:01:05]} {[%emt 00:00:31]} 39. Bxd4
{[%clk 00:02:20]} {[%emt 00:00:31]} exd4 {[%clk 00:01:35]} 40. Ke2 {[%clk
00:02:43]} {[%emt 00:00:06]} Nc6 {[%clk 00:01:42]} {[%emt 00:00:20]} 41. Nb7
{[%clk 00:02:18]} {[%emt 00:00:58]} Ke7 {[%clk 00:01:46]} {[%emt 00:00:25]} 42.
b5 {[%clk 00:02:20]} {[%emt 00:00:29]} Ne5 {[%clk 00:29:36]} {[%emt 00:02:40]}
43. c5 {[%clk 00:30:24]} {[%emt 00:02:26]} Nd7 {[%clk 00:27:28]} {[%emt
00:02:38]} 44. a7 {[%clk 00:25:30]} {[%emt 00:05:24]} e5 {[%clk 00:24:10]}
{[%emt 00:03:47]} 45. c6 {[%clk 00:20:57]} {[%emt 00:05:04]} Nb6 {[%clk
00:23:33]} {[%emt 00:01:07]} 46. Rc5 {[%clk 00:18:05]} {[%emt 00:03:22]} Ke6
{[%clk 00:20:43]} {[%emt 00:03:20]} 47. Ra6 {[%clk 00:14:39]} {[%emt 00:03:56]}
Nd5 {[%clk 00:21:01]} {[%emt 00:00:12]} 48. c7+ {[%clk 00:13:02]} {[%emt
00:02:07]} 1-0

[Event "NJSK 2018 Meisjes C"]
[Site "Assen, Netherlands"]
[Date "2018.05.02"]
[Round "4.4"]
[White "Bogouslavskii, Veronique"]
[Black "Den Heijer, Rolinde"]
[Result "1-0"]
[TimeControl "40/90m+30m+30sec/move"]
[WhiteElo "1004"]
[BlackElo "1538"]

1. d4 {[%clk 01:30:51]} {[%emt 00:00:08]} Nf6 {[%clk 01:30:52]} {[%emt
00:00:09]} 2. c4 {[%clk 01:31:14]} {[%emt 00:00:07]} e6 {[%clk 01:31:11]}
{[%emt 00:00:11]} 3. Nc3 {[%clk 01:31:36]} {[%emt 00:00:07]} b6 {[%clk
01:31:29]} {[%emt 00:00:13]} 4. Nf3 {[%clk 01:31:53]} {[%emt 00:00:12]} Bb7
{[%clk 01:31:49]} {[%emt 00:00:10]} 5. Bf4 {[%clk 01:31:38]} {[%emt 00:00:45]}
Bb4 {[%clk 01:31:57]} {[%emt 00:00:22]} 6. Qc2 {[%clk 01:30:10]} {[%emt
00:01:58]} Be4 {[%clk 01:31:18]} {[%emt 00:01:09]} 7. Qc1 {[%clk 01:28:48]}
{[%emt 00:01:52]} O-O {[%clk 01:30:26]} {[%emt 00:01:22]} 8. a3 {[%clk
01:28:49]} {[%emt 00:00:30]} Bxc3+ {[%clk 01:29:49]} {[%emt 00:01:06]} 9. Qxc3
{[%clk 01:26:48]} {[%emt 00:02:31]} h6 {[%clk 01:27:42]} {[%emt 00:02:37]} 10.
Ne5 {[%clk 01:21:07]} {[%emt 00:06:11]} d6 {[%clk 01:25:11]} {[%emt 00:03:01]}
11. Nd3 {[%clk 01:20:21]} {[%emt 00:01:17]} Nbd7 {[%clk 01:23:10]} {[%emt
00:02:31]} 12. f3 {[%clk 01:20:15]} {[%emt 00:00:36]} Bxd3 {[%clk 01:22:44]}
{[%emt 00:00:55]} 13. Qxd3 {[%clk 01:19:11]} {[%emt 00:01:35]} Rc8 {[%clk
01:17:05]} {[%emt 00:06:09]} 14. e4 {[%clk 01:16:17]} {[%emt 00:03:23]} d5
{[%clk 01:13:57]} {[%emt 00:03:38]} 15. cxd5 {[%clk 01:10:39]} {[%emt
00:06:09]} exd5 {[%clk 01:13:59]} {[%emt 00:00:28]} 16. e5 {[%clk 01:10:38]}
{[%emt 00:00:30]} Qe7 {[%clk 01:12:23]} {[%emt 00:02:06]} 17. Be2 {[%clk
01:09:11]} {[%emt 00:01:57]} Nh7 {[%clk 01:11:56]} {[%emt 00:00:57]} 18. O-O
{[%clk 01:08:02]} {[%emt 00:01:39]} Ng5 {[%clk 01:07:51]} {[%emt 00:04:35]} 19.
Bd1 {[%clk 01:04:35]} {[%emt 00:03:56]} Ne6 {[%clk 01:07:14]} {[%emt 00:01:07]}
20. Bc2 {[%clk 01:03:39]} {[%emt 00:01:26]} f5 {[%clk 01:05:18]} {[%emt
00:02:27]} 21. exf6 {[%clk 01:00:11]} {[%emt 00:03:59]} Nxf6 {[%clk 01:04:59]}
{[%emt 00:00:48]} 22. Be5 {[%emt 00:05:47]} g5 {[%clk 01:01:22]} 23. Rfe1
{[%clk 00:51:07]} {[%emt 00:08:24]} c6 {[%clk 00:57:40]} {[%emt 00:04:12]} 24.
Re2 {[%clk 00:43:53]} {[%emt 00:07:44]} Qh7 {[%clk 00:53:51]} {[%emt 00:04:19]}
25. Qxh7+ {[%clk 00:36:02]} {[%emt 00:08:21]} Nxh7 {[%clk 00:54:14]} {[%emt
00:00:07]} 26. Bd3 {[%clk 00:31:34]} {[%emt 00:04:56]} Rf7 {[%clk 00:49:21]}
{[%emt 00:05:25]} 27. Bg6 {[%clk 00:27:42]} {[%emt 00:04:16]} Rff8 {[%clk
00:47:40]} {[%emt 00:02:17]} 28. Bd6 {[%clk 00:27:23]} {[%emt 00:00:49]} Nxd4
{[%clk 00:37:53]} {[%emt 00:10:17]} 29. Re7 {[%clk 00:13:52]} {[%emt 00:14:00]}
Nf6 {[%clk 00:38:05]} {[%emt 00:00:18]} 30. Rb7 {[%clk 00:11:02]} {[%emt
00:03:08]} Nb3 {[%clk 00:37:13]} {[%emt 00:01:35]} 31. Re1 {[%clk 00:08:50]}
{[%emt 00:02:42]} Rfd8 {[%clk 00:37:08]} {[%emt 00:00:35]} 32. Bf7+ {[%clk
00:04:21]} {[%emt 00:04:48]} Kh8 {[%clk 00:37:25]} {[%emt 00:00:24]} 33. Be5
{[%clk 00:04:17]} {[%emt 00:00:34]} Kg7 {[%clk 00:36:48]} {[%emt 00:01:06]} 34.
Be6+ {[%clk 00:04:05]} {[%emt 00:00:32]} Kg6 {[%clk 00:37:13]} {[%emt
00:00:16]} 35. Bxc8 {[%clk 00:04:15]} {[%emt 00:00:20]} Rxc8 {[%clk 00:37:33]}
{[%emt 00:00:11]} 36. Rxa7 {[%clk 00:04:18]} {[%emt 00:00:26]} Re8 {[%clk
00:37:37]} {[%emt 00:00:26]} 37. Kf2 {[%clk 00:04:03]} {[%emt 00:00:45]} d4
{[%clk 00:37:35]} {[%emt 00:00:32]} 38. Bxf6 {[%clk 00:04:11]} {[%emt
00:00:22]} Rxe1 {[%clk 00:37:57]} {[%emt 00:00:08]} 39. Kxe1 {[%clk 00:04:30]}
{[%emt 00:00:11]} Kxf6 {[%clk 00:38:22]} {[%emt 00:00:05]} 40. Ra6 {[%clk
00:04:30]} {[%emt 00:00:27]} Ke5 {[%clk 00:37:48]} {[%emt 00:01:07]} 41. Rxb6
{[%clk 00:04:37]} {[%emt 00:00:22]} Na5 {[%clk 00:37:47]} {[%emt 00:00:31]} 42.
Ra6 {[%clk 00:04:38]} {[%emt 00:00:28]} Nb3 {[%clk 00:38:03]} {[%emt 00:00:16]}
43. Rxc6 {[%clk 00:04:32]} {[%emt 00:00:36]} d3 {[%clk 00:38:23]} {[%emt
00:00:09]} 44. Rc3 {[%clk 00:03:35]} {[%emt 00:02:54]} 1-0